bitfinex/quotes_BTCUSD_20250115
["timestamp","ask_amount","ask_price","bid_price","bid_amount"]
[1736949301648,0.17179782,98952.0,98929.0,0.20317469]
[1736949301851,0.202111,98956.0,98933.0,0.202156]
[1736949302051,0.202109,98957.0,98935.0,0.202152]
[1736949302270,0.202109,98957.0,98935.0,0.10422692]
[1736949302271,0.202116,98953.0,98935.0,0.10422692]
[1736949302479,0.0785212,98959.0,98935.0,0.10422692]
[1736949302697,0.11788419,98950.0,98935.0,0.10422692]
[1736949303030,0.20213,98947.0,98933.0,0.30324]
[1736949303252,0.11788419,98950.0,98933.0,0.30324]
[1736949303390,0.202139,98942.0,98933.0,0.30324]
[1736949303596,0.11788419,98950.0,98933.0,0.30324]
[1736949303812,0.202133,98945.0,98933.0,0.30324]
[1736949304063,0.11788419,98950.0,98933.0,0.30324]
[1736949304231,0.0785212,98951.0,98933.0,0.30424]
[1736949304439,0.15,98959.0,98933.0,0.30424]
[1736949304612,0.0785212,98951.0,98933.0,0.30324]
[1736949304827,0.001,98950.0,98933.0,0.40746692]
[1736949305029,0.001,98950.0,98935.0,0.023]
[1736949305229,0.15,98959.0,98935.0,0.12722692]
[1736949305434,0.004,98951.0,98935.0,0.12722692]
[1736949305697,0.004,98951.0,98933.0,0.30324]
[1736949305973,0.0825212,98951.0,98933.0,0.40746692]
[1736949306134,0.004,98951.0,98934.0,0.08117919]
[1736949306526,0.004,98951.0,98935.0,0.202152]
[1736949306723,0.004,98951.0,98935.0,0.50954158]
[1736949306949,0.202091,98966.0,98942.0,0.0753]
[1736949307238,0.202091,98966.0,98944.0,0.202134]
[1736949307487,0.202089,98966.0,98945.0,0.10523746]
[1736949307693,0.2029357,98970.0,98945.0,0.10422692]
[1736949307901,0.2029357,98970.0,98945.0,0.10523745]
[1736949308104,0.17264847,98970.0,98946.0,0.20213]
[1736949308310,0.20209,98966.0,98946.0,0.50533]
[1736949308552,0.17314867,98970.0,98947.0,0.08257411]
[1736949308767,0.37522967,98970.0,98947.0,0.38576411]
[1736949308903,0.0005002,98970.0,98949.0,0.202124]
[1736949309104,0.0005002,98970.0,98951.0,0.023]
[1736949309323,0.0005002,98970.0,98961.0,0.202097]
[1736949309521,0.0005002,98970.0,98962.0,0.0404204]
[1736949309747,0.0005002,98970.0,98962.0,0.3435704]
[1736949309948,0.0005002,98970.0,98967.0,0.202087]
[1736949310118,0.0005002,98970.0,98963.0,0.10422692]
[1736949310427,0.0025002,98970.0,98963.0,0.60946092]
[1736949310624,0.0025002,98970.0,98964.0,0.00101033]
[1736949310625,0.0005002,98970.0,98964.0,0.00101033]
[1736949310828,0.0005002,98970.0,98965.0,0.10422692]
[1736949311627,0.0005002,98970.0,98966.0,0.202089]
[1736949311806,0.0005002,98970.0,98966.0,0.30631592]
[1736949312049,0.0005002,98970.0,98966.0,0.10422692]
[1736949313621,0.0005002,98970.0,98967.0,0.202087]
[1736949313824,0.0005002,98970.0,98966.0,0.10422692]
[1736949314134,0.1934538,98981.0,98966.0,0.11122692]
[1736949314398,0.19360373,98981.0,98967.0,0.04143669]
[1736949314600,0.00014993,98981.0,98967.0,0.04143669]
[1736949314799,0.20220893,98981.0,98967.0,0.04143669]
[1736949315254,0.202068,98977.0,98967.0,0.04143669]
[1736949315455,0.20220893,98981.0,98967.0,0.04143669]
[1736949315655,0.00014993,98981.0,98968.0,0.04498036]
[1736949316365,0.00100413,98981.0,98968.0,0.04498036]
[1736949316571,0.11788419,98980.0,98964.0,0.30314]
[1736949316785,0.202076,98973.0,98964.0,0.30314]
[1736949317001,0.11788419,98980.0,98964.0,0.30314]
[1736949317203,0.202065,98978.0,98970.0,0.2]
[1736949317618,0.40413,98978.0,98970.0,0.2]
[1736949317832,0.40413,98978.0,98970.0,0.250314]
[1736949317833,0.202065,98978.0,98970.0,0.250314]
[1736949318033,0.202062,98980.0,98970.0,0.250314]
[1736949318253,0.00100413,98981.0,98970.0,0.2]
[1736949318455,0.00100413,98981.0,98971.0,0.10523722]
[1736949318665,0.00100413,98981.0,98976.0,0.202068]
[1736949318878,0.00100413,98981.0,98971.0,0.10422692]
[1736949319513,0.00100413,98981.0,98973.0,0.023]
[1736949319717,0.00100413,98981.0,98974.0,0.10422692]
[1736949319950,0.00100413,98981.0,98974.0,0.1595361]
[1736949320155,0.001,98980.0,98974.0,0.10422692]
[1736949320371,0.00100413,98981.0,98974.0,0.10422692]
[1736949320595,0.00100413,98981.0,98976.0,0.202069]
[1736949320816,0.00100413,98981.0,98980.0,0.023]
[1736949321026,0.1735634,99014.0,98990.0,0.11788419]
[1736949321266,0.1735634,99014.0,98980.0,0.43132695]
[1736949321267,0.17371325,99014.0,98993.0,0.202032]
[1736949321470,0.00014985,99014.0,98994.0,0.10523694]
[1736949321687,0.00014985,99014.0,99000.0,0.202019]
[1736949321892,0.00014985,99014.0,99001.0,0.10523688]
[1736949322317,0.00014985,99014.0,99002.0,0.00100996]
[1736949322581,0.00014985,99014.0,98995.0,0.0785]
[1736949322582,0.00014985,99014.0,99003.0,0.11475061]
[1736949322794,0.00014985,99014.0,99008.0,0.202003]
[1736949323025,0.00014985,99014.0,99010.0,0.201999]
[1736949323244,0.00014985,99014.0,99012.0,0.201995]
[1736949323458,0.00014985,99014.0,99013.0,0.1282367]
[1736949323661,0.00014985,99014.0,99013.0,0.23246362]
[1736949323865,0.00014985,99014.0,99013.0,0.53444384]
[1736949324735,0.00014985,99014.0,99013.0,0.54344384]
[1736949324955,0.00114985,99014.0,99013.0,0.54944384]
[1736949325790,0.00114985,99014.0,99013.0,0.42221692]
[1736949327252,0.00114985,99014.0,99013.0,0.31799]
[1736949327631,0.0785212,99014.0,99013.0,0.31799]
[1736949327868,0.351991,99014.0,99013.0,0.31799]
[1736949328078,0.17281062,99016.0,99013.0,0.31799]
[1736949328268,0.201975,99022.0,99013.0,0.31199]
[1736949328559,0.0008539,99014.0,99013.0,0.31199]
[1736949329613,0.0008539,99014.0,99013.0,0.30299]
[1736949329816,0.0048539,99014.0,99013.0,0.30299]
[1736949330272,0.0008539,99014.0,99013.0,0.30299]
[1736949330455,0.0018539,99014.0,99013.0,0.30599]
[1736949330674,0.0018539,99014.0,99013.0,0.30299]
[1736949331116,0.0008539,99014.0,99013.0,0.30499]
[1736949331901,0.0008539,99014.0,99013.0,0.30299]
[1736949332765,0.0008539,99014.0,99013.0,0.30599]
[1736949332974,0.2028449,99014.0,99013.0,0.30599]
[1736949333185,0.2028449,99014.0,99013.0,0.30299]
[1736949333393,0.2028449,99014.0,99013.0,0.30699]
[1736949333816,0.2028449,99014.0,99013.0,0.30599]
[1736949334065,0.17251767,99014.0,99013.0,0.30599]
[1736949334239,0.17251767,99014.0,99013.0,0.30299]
[1736949334899,0.17251767,99014.0,99013.0,0.30499]
[1736949335314,0.201991,99014.0,99013.0,0.30399]
[1736949335521,0.201991,99014.0,99013.0,0.30499]
[1736949335731,0.46353912,99014.0,99013.0,0.30499]
[1736949335933,0.76737012,99014.0,99013.0,0.30499]
[1736949336071,0.76737012,99014.0,99013.0,0.30399]
[1736949336469,0.76837012,99014.0,99013.0,0.30399]
[1736949336728,0.76737012,99014.0,99013.0,0.30399]
[1736949337009,0.66473912,99014.0,99013.0,0.30399]
[1736949337232,1.24954512,99014.0,99013.0,0.30399]
[1736949337353,1.24554512,99014.0,99013.0,0.30299]
[1736949337939,1.15184212,99014.0,99013.0,0.30399]
[1736949339416,1.10360612,99014.0,99013.0,0.30399]
[1736949339625,0.82415712,99014.0,99013.0,0.30399]
[1736949339826,0.81063112,99014.0,99013.0,0.30094507]
[1736949340029,0.80663112,99014.0,99013.0,0.29994507]
[1736949340237,0.81063112,99014.0,99013.0,0.30094507]
[1736949340448,0.65660688,99014.0,99013.0,0.30094507]
[1736949340628,0.57808568,99014.0,99013.0,0.30094507]
[1736949340859,0.57808568,99014.0,99013.0,0.30273763]
[1736949340860,0.53088568,99014.0,99013.0,0.30273763]
[1736949341034,0.52688568,99014.0,99013.0,0.30173763]
[1736949341242,0.53088568,99014.0,99013.0,0.30273763]
[1736949341462,0.52888568,99014.0,99013.0,0.30273763]
[1736949341676,0.40021315,99014.0,99013.0,0.30173763]
[1736949341883,0.40521315,99014.0,99013.0,0.30173763]
[1736949342737,0.32669195,99014.0,99013.0,0.30173763]
[1736949342944,0.40521315,99014.0,99013.0,0.30173763]
[1736949343146,0.40121315,99014.0,99013.0,0.30173763]
[1736949343555,0.32669195,99014.0,99013.0,0.30273763]
[1736949343758,0.32169195,99014.0,99013.0,0.30173763]
[1736949344091,0.0008536,99016.0,99015.0,0.02630805]
[1736949344304,0.0793748,99016.0,99015.0,0.02630805]
[1736949344499,0.2293748,99016.0,99015.0,0.02630805]
[1736949345352,0.33360172,99016.0,99015.0,0.02630805]
[1736949345754,0.33360172,99016.0,99015.0,0.02830805]
[1736949346319,0.33360172,99016.0,99015.0,0.02930805]
[1736949346726,0.33360172,99016.0,99015.0,0.02830805]
[1736949346929,0.30530267,99016.0,99015.0,0.02830805]
[1736949347175,0.30330267,99016.0,99015.0,0.02630805]
[1736949347368,0.30330267,99016.0,99015.0,0.02730805]
[1736949347703,0.30530267,99016.0,99015.0,0.02730805]
[1736949348081,0.30730267,99016.0,99015.0,0.02730805]
[1736949348641,0.30730267,99016.0,99015.0,0.02630805]
[1736949349042,0.30730267,99016.0,99015.0,0.02730805]
[1736949349420,0.30330267,99016.0,99015.0,0.02730805]
[1736949349825,0.30530267,99016.0,99015.0,0.02730805]
[1736949350197,0.40154714,99016.0,99015.0,0.02630805]
[1736949350597,0.39754714,99016.0,99015.0,0.02730805]
[1736949350840,0.40054714,99016.0,99015.0,0.02730805]
[1736949351264,0.40054714,99016.0,99015.0,0.02630805]
[1736949351466,0.30330267,99016.0,99015.0,0.02630805]
[1736949351623,0.30430267,99016.0,99015.0,0.02630805]
[1736949352028,0.22478147,99016.0,99015.0,0.02630805]
[1736949352662,0.10422692,99016.0,99015.0,0.02630805]
[1736949352835,0.10722692,99016.0,99015.0,0.02730805]
[1736949353044,0.10422692,99016.0,99015.0,0.02630805]
[1736949353240,0.07392787,99016.0,99015.0,0.02630805]
[1736949353445,0.07592787,99016.0,99015.0,0.02630805]
[1736949353673,0.002,99016.0,99015.0,0.02630805]
[1736949354078,0.201985,99017.0,99015.0,0.02630805]
[1736949354348,0.201985,99017.0,99015.0,0.02730805]
[1736949354521,0.001,99016.0,99015.0,0.02730805]
[1736949354728,0.001,99016.0,99015.0,0.06100518]
[1736949354873,0.0018536,99016.0,99015.0,0.02810061]
[1736949355069,0.0018536,99016.0,99015.0,0.02910061]
[1736949355786,0.0008536,99016.0,99015.0,0.02910061]
[1736949356395,0.0008536,99016.0,99015.0,0.02810061]
[1736949356600,0.0008536,99016.0,99015.0,0.03210061]
[1736949356779,0.0008536,99016.0,99015.0,0.03510061]
[1736949357200,0.0008536,99016.0,99015.0,0.03210061]
[1736949357401,0.0008536,99016.0,99015.0,0.02810061]
[1736949357601,0.0008536,99016.0,99015.0,0.03110061]
[1736949358029,0.0008536,99016.0,99015.0,0.02810061]
[1736949358440,0.0008536,99016.0,99015.0,0.03110061]
[1736949358852,0.03,99018.0,99015.0,0.03110061]
[1736949358853,0.20578431,99018.0,99015.0,0.03110061]
[1736949359077,0.28430551,99018.0,99015.0,0.03110061]
[1736949359281,0.28430551,99018.0,99015.0,0.03510061]
[1736949359483,0.48628951,99018.0,99015.0,0.03110061]
[1736949359691,0.45599046,99018.0,99015.0,0.02810061]
[1736949359897,0.201987,99016.0,99015.0,0.03110061]
[1736949360104,0.202987,99016.0,99015.0,0.03110061]
[1736949360354,0.201987,99016.0,99015.0,0.03110061]
[1736949360509,0.2805082,99016.0,99015.0,0.02810061]
[1736949360709,0.2805082,99016.0,99015.0,0.03010061]
[1736949361170,0.2805082,99016.0,99015.0,0.02810061]
[1736949361385,0.201987,99016.0,99015.0,0.02810061]
[1736949361588,0.2805082,99016.0,99015.0,0.02910061]
[1736949361764,0.201987,99016.0,99015.0,0.02910061]
[1736949361970,0.2805082,99016.0,99015.0,0.02910061]
[1736949362376,0.2805082,99016.0,99015.0,0.03010061]
[1736949362956,0.34746366,99016.0,99015.0,0.03010061]
[1736949363157,0.34746366,99016.0,99015.0,0.02910061]
[1736949363345,0.2805082,99016.0,99015.0,0.02810061]
[1736949363766,0.2805082,99016.0,99015.0,0.02910061]
[1736949364211,0.2805082,99016.0,99015.0,0.02810061]
[1736949364585,0.0797212,99019.0,99015.0,0.02910061]
[1736949364812,0.0012,99019.0,99015.0,0.02910061]
[1736949365207,0.0012,99019.0,99015.0,0.02810061]
[1736949365416,0.0012,99019.0,99015.0,0.02910061]
[1736949365931,0.001,99016.0,99015.0,0.02910061]
[1736949366102,0.06158108,99025.0,99015.0,0.02910061]
[1736949366530,0.001,99019.0,99015.0,0.02910061]
[1736949366746,0.201977,99021.0,99015.0,0.02810061]
[1736949366948,0.06158108,99022.0,99015.0,0.02810061]
[1736949367219,0.06158108,99025.0,99016.0,0.10422692]
[1736949367430,0.11873919,99040.0,99019.0,0.173]
[1736949367431,0.000855,99040.0,99019.0,0.173]
[1736949367641,0.000855,99040.0,99021.0,0.173]
[1736949367824,0.000855,99040.0,99037.0,0.225]
[1736949368292,0.000855,99040.0,99038.0,0.2446365]
[1736949368729,0.000855,99040.0,99038.0,0.201942]
[1736949369590,0.000855,99040.0,99038.0,0.204942]
[1736949370222,0.000855,99040.0,99038.0,0.201942]
[1736949370617,0.000855,99040.0,99039.0,0.10523651]
[1736949371126,0.000855,99040.0,99039.0,0.10422692]
[1736949371331,0.000855,99040.0,99039.0,0.17843891]
[1736949371783,0.000855,99040.0,99039.0,0.48439891]
[1736949371987,0.000855,99040.0,99039.0,0.48939891]
[1736949372392,0.000855,99040.0,99039.0,0.48439891]
[1736949372597,0.2019,99059.0,99039.0,0.48439891]
[1736949372799,0.00014982,99046.0,99040.0,0.29826719]
[1736949373021,0.00014982,99046.0,99041.0,0.10422692]
[1736949373436,0.00014982,99046.0,99040.0,0.30595]
[1736949374638,0.00014982,99046.0,99041.0,0.004]
[1736949375159,0.00014982,99046.0,99040.0,0.31195]
[1736949375364,0.00014982,99046.0,99040.0,0.31595]
[1736949375812,0.00014982,99046.0,99040.0,0.30995]
[1736949376184,0.00014982,99046.0,99041.0,0.005]
[1736949376389,0.00014982,99046.0,99040.0,0.30995]
[1736949376789,0.00014982,99046.0,99040.0,0.30895]
[1736949376986,0.00014982,99046.0,99041.0,0.004]
[1736949377676,0.00014982,99046.0,99040.0,0.30895]
[1736949377888,0.03753095,99043.0,99040.0,0.30995]
[1736949378096,0.44139495,99043.0,99040.0,0.30995]
[1736949378569,0.44139495,99043.0,99040.0,0.30595]
[1736949378774,0.03753095,99041.0,99040.0,0.30595]
[1736949379126,0.00723252,99041.0,99040.0,0.30595]
[1736949379336,0.20916452,99043.0,99040.0,0.30595]
[1736949379495,0.00723252,99041.0,99040.0,0.30595]
[1736949379919,0.00923252,99041.0,99040.0,0.30595]
[1736949380299,0.00723252,99041.0,99040.0,0.30595]
[1736949380631,0.02704497,99041.0,99040.0,0.30595]
[1736949380838,0.02704497,99041.0,99040.0,0.30795]
[1736949381649,0.02904497,99041.0,99040.0,0.30795]
[1736949381914,0.02704497,99041.0,99040.0,0.30595]
[1736949382075,0.01981245,99041.0,99040.0,0.30595]
[1736949382276,0.02181245,99041.0,99040.0,0.30595]
[1736949382500,0.01981245,99041.0,99040.0,0.30595]
[1736949382702,0.00823594,99046.0,99040.0,0.30595]
[1736949382878,0.002,99041.0,99040.0,0.30595]
[1736949383058,0.00100342,99046.0,99040.0,0.30595]
[1736949383511,0.00100342,99046.0,99040.0,0.30695]
[1736949384525,0.00100342,99046.0,99040.0,0.30795]
[1736949384730,0.00100342,99046.0,99040.0,0.30695]
[1736949385153,0.00200342,99046.0,99040.0,0.30695]
[1736949385355,0.0968217,99050.0,99040.0,0.30695]
[1736949385561,0.20192,99049.0,99040.0,0.30695]
[1736949386171,0.01212127,99048.0,99040.0,0.30695]
[1736949386560,0.01212127,99048.0,99040.0,0.30595]
[1736949386960,0.01212127,99048.0,99040.0,0.30695]
[1736949387416,0.01212127,99048.0,99040.0,0.30595]
[1736949388026,0.01212127,99048.0,99040.0,0.30695]
[1736949388181,0.01312127,99048.0,99040.0,0.30695]
[1736949388394,0.01212127,99048.0,99040.0,0.30695]
[1736949388609,0.01212127,99048.0,99040.0,0.30595]
[1736949388789,0.01212127,99048.0,99040.0,0.30895]
[1736949390067,0.01212127,99048.0,99040.0,0.31195]
[1736949390275,0.05346955,99047.0,99040.0,0.31195]
[1736949390505,0.201932,99044.0,99040.0,0.31195]
[1736949390674,0.403864,99044.0,99040.0,0.31195]
[1736949391160,0.403864,99044.0,99040.0,0.30895]
[1736949391375,0.403864,99044.0,99040.0,0.30795]
[1736949391555,0.196934,99042.0,99040.0,0.30974193]
[1736949391713,0.10422692,99041.0,99040.0,0.31074193]
[1736949391918,0.10422692,99041.0,99040.0,0.30774193]
[1736949392100,0.22392849,99041.0,99040.0,0.30774193]
[1736949392931,0.22492849,99041.0,99040.0,0.30774193]
[1736949394552,0.22496849,99041.0,99040.0,0.30774193]
[1736949395183,0.32036698,99041.0,99040.0,0.30774193]
[1736949395357,0.32136698,99041.0,99040.0,0.30874193]
[1736949395555,0.22496849,99041.0,99040.0,0.30874193]
[1736949395875,0.22496849,99041.0,99040.0,0.30774193]
[1736949396199,0.22596849,99041.0,99040.0,0.32774193]
[1736949396608,0.15204,99041.0,99040.0,0.32774193]
[1736949396968,0.00204,99041.0,99040.0,0.32774193]
[1736949398785,0.201933,99043.0,99040.0,0.32774193]
[1736949399155,0.403866,99043.0,99040.0,0.32774193]
[1736949399569,0.403866,99043.0,99040.0,0.37044165]
[1736949400124,0.404866,99043.0,99040.0,0.37044165]
[1736949401450,0.403866,99043.0,99040.0,0.37044165]
[1736949401651,0.403866,99043.0,99040.0,0.37144165]
[1736949402031,0.403866,99043.0,99040.0,0.37044165]
[1736949402841,0.201933,99043.0,99040.0,0.37044165]
[1736949403518,0.403866,99043.0,99040.0,0.37044165]
[1736949403731,0.201933,99043.0,99040.0,0.37044165]
[1736949403924,0.403866,99043.0,99040.0,0.37144165]
[1736949404335,0.201933,99043.0,99040.0,0.37144165]
[1736949404894,0.17164221,99043.0,99040.0,0.37144165]
[1736949405102,0.37357421,99043.0,99040.0,0.37144165]
[1736949405921,0.17164221,99043.0,99040.0,0.37144165]
[1736949406171,0.0008534,99044.0,99040.0,0.37144165]
[1736949406503,0.0008534,99044.0,99041.0,0.03714417]
[1736949406706,0.0008534,99044.0,99040.0,0.37144165]
[1736949406937,0.01210289,99043.0,99041.0,0.0815]
[1736949407741,0.01210289,99043.0,99041.0,0.0315]
[1736949408116,0.01210289,99043.0,99041.0,0.33745]
[1736949408315,0.0008534,99044.0,99041.0,0.33745]
[1736949408524,0.0008534,99044.0,99042.0,0.06038887]
[1736949408882,0.0008534,99044.0,99041.0,0.33845]
[1736949410480,0.0008534,99044.0,99041.0,0.33745]
[1736949410653,0.0008534,99044.0,99041.0,0.33845]
[1736949411077,0.0008534,99044.0,99041.0,0.34145]
[1736949411427,0.17421991,99055.0,99041.0,0.34045]
[1736949411632,0.17421991,99055.0,99042.0,0.02413772]
[1736949412042,0.11788419,99052.0,99041.0,0.31195]
[1736949412653,0.403863,99044.0,99041.0,0.30895]
[1736949413403,0.201934,99042.0,99041.0,0.30895]
[1736949413613,0.201934,99042.0,99041.0,0.30595]
[1736949414047,0.201934,99042.0,99041.0,0.30695]
[1736949414255,0.55120897,99042.0,99041.0,0.30695]
[1736949414461,1.08884002,99042.0,99041.0,0.30595]
[1736949414635,1.23804002,99042.0,99041.0,0.11492421]
[1736949415047,1.92221102,99042.0,99041.0,0.11492421]
[1736949415245,0.273,99041.0,99040.0,0.06449165]
[1736949415385,1.72980847,99041.0,99040.0,0.06449165]
[1736949415784,1.72980847,99041.0,99027.0,0.04430202]
[1736949415785,0.201963,99028.0,99027.0,0.03440779]
[1736949416010,1.10092392,99028.0,99027.0,0.03455761]
[1736949416212,0.72817392,99028.0,99027.0,0.03455761]
[1736949417922,0.38350113,99028.0,99027.0,0.03455761]
[1736949418133,0.27689913,99028.0,99027.0,0.03455761]
[1736949418540,0.28705912,99028.0,99027.0,0.03455761]
[1736949418715,0.01115999,99028.0,99027.0,0.03455761]
[1736949419079,0.06174379,99028.0,99027.0,0.03455761]
[1736949419502,0.01115999,99028.0,99027.0,0.03455761]
[1736949421322,0.01015999,99028.0,99027.0,0.03455761]
[1736949421524,0.351963,99028.0,99027.0,0.03455761]
[1736949421731,0.201952,99034.0,99027.0,0.03455761]
[1736949421927,0.201958,99031.0,99027.0,0.03455761]
[1736949422133,0.201959,99030.0,99027.0,0.03355761]
[1736949423295,0.15,99033.0,99027.0,0.05986566]
[1736949423446,0.01020091,99034.0,99027.0,0.05986566]
[1736949423655,0.201946,99036.0,99027.0,0.06585223]
[1736949423854,0.201956,99032.0,99027.0,0.06086566]
[1736949424084,0.201949,99035.0,99027.0,0.06086566]
[1736949424284,0.17165821,99035.0,99027.0,0.05986566]
[1736949425012,0.20195,99034.0,99027.0,0.05986566]
[1736949426168,0.15,99033.0,99027.0,0.05986566]
[1736949426769,0.15,99031.0,99027.0,0.05986566]
[1736949426975,0.15,99031.0,99027.0,0.06086566]
[1736949427386,0.201954,99032.0,99027.0,0.05986566]
[1736949427838,0.201954,99032.0,99027.0,0.06086566]
[1736949428243,0.11788419,99037.0,99027.0,0.05986566]
[1736949428450,0.01040901,99044.0,99027.0,0.05986566]
[1736949428724,0.201934,99042.0,99027.0,0.06286566]
[1736949428922,0.403868,99042.0,99027.0,0.06186566]
[1736949429375,0.201929,99045.0,99028.0,0.00618657]
[1736949429587,0.201929,99045.0,99027.0,0.06186566]
[1736949429798,0.201934,99042.0,99027.0,0.0636578]
[1736949430013,0.201929,99045.0,99027.0,0.0636578]
[1736949430238,0.201929,99045.0,99027.0,0.0616578]
[1736949430440,0.15,99049.0,99028.0,0.13069057]
[1736949430645,0.11788419,99050.0,99033.0,0.201952]
[1736949430819,0.201908,99055.0,99034.0,0.10422692]
[1736949431061,0.201908,99055.0,99035.0,0.201948]
[1736949431264,0.201908,99055.0,99035.0,0.10422692]
[1736949431467,0.11788419,99050.0,99035.0,0.10422692]
[1736949431669,0.15,99059.0,99036.0,0.0479195]
[1736949431839,0.15,99057.0,99036.0,0.0479195]
[1736949432076,0.11788419,99050.0,99036.0,0.0479195]
[1736949434091,0.11788419,99050.0,99036.0,0.0489195]
[1736949434265,0.11788419,99050.0,99036.0,0.0499195]
[1736949434470,0.11788419,99050.0,99036.0,0.002]
[1736949435307,0.201933,99043.0,99036.0,0.002]
[1736949436144,0.20194,99040.0,99036.0,0.002]
[1736949436349,0.20194,99040.0,99036.0,0.001]
[1736949436779,0.19239796,99040.0,99021.0,0.201976]
[1736949436979,0.31028215,99040.0,99030.0,0.10422692]
[1736949437225,0.20194,99039.0,99030.0,0.10422692]
[1736949437425,0.403881,99039.0,99036.0,0.001]
[1736949437884,0.351944,99037.0,99036.0,0.001]
[1736949438081,0.351944,99037.0,99014.0,0.04590431]
[1736949438082,0.0812,99034.0,99029.0,0.001]
[1736949438289,0.0486,99031.0,99027.0,0.0606578]
[1736949438498,0.351963,99028.0,99027.0,0.0606578]
[1736949438729,0.84159092,99028.0,99027.0,0.0606578]
[1736949438911,0.94972092,99028.0,99027.0,0.0606578]
[1736949439735,0.66169392,99028.0,99027.0,0.0606578]
[1736949440571,0.66469392,99028.0,99027.0,0.0606578]
[1736949441245,0.45918992,99028.0,99027.0,0.0616578]
[1736949441432,0.354963,99028.0,99027.0,0.0616578]
[1736949441643,0.44560965,99028.0,99027.0,0.0616578]
[1736949442568,0.44260965,99028.0,99027.0,0.0616578]
[1736949442796,0.353963,99028.0,99027.0,0.0616578]
[1736949443196,0.4297504,99028.0,99027.0,0.0616578]
[1736949443325,0.4277504,99028.0,99027.0,0.0616578]
[1736949443524,0.39745564,99028.0,99027.0,0.0606578]
[1736949443730,0.32166824,99028.0,99027.0,0.0606578]
[1736949445019,0.42589516,99028.0,99027.0,0.0606578]
[1736949445671,1.25213016,99028.0,99027.0,0.0606578]
[1736949445875,1.07353916,99028.0,99027.0,0.0606578]
[1736949446277,1.00329216,99028.0,99027.0,0.0606578]
[1736949446458,0.59418616,99028.0,99027.0,0.0606578]
[1736949446825,0.59618616,99028.0,99027.0,0.0606578]
[1736949447024,0.59618616,99028.0,99027.0,0.0616578]
[1736949447225,0.59418616,99028.0,99027.0,0.0616578]
[1736949448269,0.56473116,99028.0,99027.0,0.0616578]
[1736949448470,0.42589516,99028.0,99027.0,0.0616578]
[1736949448714,0.42789516,99028.0,99027.0,0.0616578]
[1736949449510,0.42589516,99028.0,99027.0,0.0616578]
[1736949449707,0.42589516,99028.0,99027.0,0.0606578]
[1736949449914,0.25722692,99028.0,99027.0,0.0616578]
[1736949450345,0.45918992,99028.0,99027.0,0.0606578]
[1736949450488,0.45818992,99028.0,99027.0,0.0606578]
[1736949450698,0.69062392,99028.0,99027.0,0.0606578]
[1736949450900,0.67338492,99028.0,99027.0,0.0606578]
[1736949451102,0.71213692,99028.0,99027.0,0.0606578]
[1736949452600,0.61213692,99028.0,99027.0,0.0606578]
[1736949452776,0.56923492,99028.0,99027.0,0.0606578]
[1736949452975,0.58948692,99028.0,99027.0,0.0606578]
[1736949453176,0.58848692,99028.0,99027.0,0.0606578]
[1736949453380,0.59048692,99028.0,99027.0,0.0606578]
[1736949453590,0.59248692,99028.0,99027.0,0.0616578]
[1736949453904,0.59048692,99028.0,99027.0,0.0606578]
[1736949454269,0.59448692,99028.0,99027.0,0.0616578]
[1736949454631,0.58312792,99028.0,99027.0,0.0616578]
[1736949456468,0.46218992,99028.0,99027.0,0.0616578]
[1736949456843,0.43189516,99028.0,99027.0,0.0616578]
[1736949457040,1.13410716,99028.0,99027.0,0.0616578]
[1736949457357,1.03402616,99028.0,99027.0,0.0616578]
[1736949457511,0.57569916,99028.0,99027.0,0.0616578]
[1736949458465,0.67569916,99028.0,99027.0,0.0212638]
[1736949458624,0.67569916,99028.0,99027.0,0.0010668]
[1736949458826,0.67569916,99028.0,99027.0,8e-07]
[1736949459126,0.53189516,99028.0,99027.0,8e-07]
[1736949459715,0.43189516,99028.0,99027.0,8e-07]
[1736949461182,0.31218992,99028.0,99027.0,8e-07]
[1736949461399,0.207963,99028.0,99027.0,8e-07]
[1736949462029,0.205963,99028.0,99027.0,8e-07]
[1736949462457,0.207963,99028.0,99027.0,8e-07]
[1736949462894,0.205963,99028.0,99027.0,8e-07]
[1736949463328,0.205963,99028.0,99027.0,0.002]
[1736949463329,0.17166824,99028.0,99027.0,0.002]
[1736949463509,0.17566824,99028.0,99027.0,0.003]
[1736949463915,0.17566824,99028.0,99027.0,0.002]
[1736949464057,0.17566824,99028.0,99027.0,0.004]
[1736949464886,0.0103659,99037.0,99027.0,0.004]
[1736949465103,0.201928,99045.0,99027.0,0.004]
[1736949465310,0.201963,99028.0,99027.0,0.004]
[1736949465754,0.201963,99028.0,99027.0,0.00579466]
[1736949465918,0.201963,99028.0,99027.0,0.00379466]
[1736949466121,0.2028176,99028.0,99027.0,0.00379466]
[1736949466331,0.21304543,99028.0,99027.0,0.00179466]
[1736949466987,0.01108243,99028.0,99027.0,0.00179466]
[1736949467161,0.01108243,99028.0,99027.0,0.00379466]
[1736949467318,0.01108243,99028.0,99027.0,0.00579466]
[1736949467519,0.0008546,99028.0,99027.0,0.00579466]
[1736949467953,0.0008546,99028.0,99027.0,0.10467133]
[1736949469722,0.17334734,99042.0,99027.0,0.10467133]
[1736949470477,0.20194,99039.0,99027.0,0.08189466]
[1736949470657,0.11788419,99040.0,99027.0,0.08189466]
[1736949471264,0.201936,99042.0,99027.0,0.08189466]
[1736949471487,0.201928,99045.0,99027.0,0.28385866]
[1736949471688,0.201928,99045.0,99027.0,0.28185866]
[1736949471899,0.201928,99045.0,99028.0,0.04838307]
[1736949472103,0.201936,99042.0,99027.0,0.07989466]
[1736949472304,0.11788419,99040.0,99027.0,0.07989466]
[1736949472688,0.20194,99039.0,99027.0,0.07989466]
[1736949472886,0.11788419,99040.0,99027.0,0.07989466]
[1736949473305,0.11788419,99040.0,99028.0,0.001]
[1736949473564,0.201926,99046.0,99028.0,0.23124777]
[1736949474559,0.201926,99046.0,99028.0,0.004]
[1736949474767,0.201935,99042.0,99028.0,0.004]
[1736949474969,0.201935,99042.0,99028.0,0.003]
[1736949475723,0.11788419,99040.0,99027.0,0.08189466]
[1736949475897,0.11788419,99040.0,99027.0,0.00379466]
[1736949476112,0.201943,99038.0,99028.0,0.001]
[1736949476304,0.20196,99030.0,99028.0,0.002]
[1736949476708,0.22211111,99040.0,99028.0,0.006]
[1736949476887,0.201932,99043.0,99027.0,0.00179466]
[1736949477089,0.01042624,99046.0,99029.0,0.201961]
[1736949477293,0.201919,99050.0,99031.0,0.0822]
[1736949477497,0.31980319,99050.0,99034.0,0.201949]